Workbook

Sheet Blad1
D2: 2000-01-01 | E2: Geboortedatum | H2: Afwijkende periodes
D3: 2023 | E3: Jaar
D4: Ja | E4: Pensioenpremie
D5: Geen | E5: Sociaal fonds
D6: Geen | E6: Opleidingsfonds
D7: Ja | E7: Private aanvulling WW en WGA
D9: Uurloon | E9: Uren | F9: fulltime jaarloon | G9: Franchise | H9: Max salaris | I9: Pensioengrondslag fulltime | J9: Pensioenpremie % | K9: Pensioenpremie | L9: Pensioenpremie % werkgever | M9: Pensioenpremie werkgever | N9: Pensioenpremie % werknemer | O9: Pensioenpremie werknemer | P9: VPL % | Q9: VPL premie | R9: Max salaris WWM | S9: Grondslag WWM | T9: WWM % | U9: Premie WWM | V9: Grondslag sociaal en O&O fonds | W9: Percentage O&O fonds | X9: Premie O&O | Y9: Percentage sociaal fonds | Z9: Premie sociaal fonds
A10: =IF(E10>494,494,E10)/13 -> 10 | B10: =A10*D10*56.36/12.96 -> 434.8765432 | C10: 1e kwartaal | D10: 10 | E10: 130 | F10: =IF(ISBLANK(E10),0,B10*12.96/ROUND(A10,2)*38) -> 21416.8 | G10: =VLOOKUP($D$3,$A$23:$B$28,2,0) -> 16322 | H10: =VLOOKUP($D$3,$A$23:$C$28,3,0) -> 86202 | I10: =ROUNDUP((IF(F10>H10,H10-G10,IF(F10-G10<0,0,F10-G10))),0) -> 5095 | J10: =VLOOKUP($D$3,$A$23:$D$28,4,0) -> 0.2798 | K10: =IF($D$4=$A$45,(I10*J10*(IF(E10>494,494,E10))/4/38/13),0) -> 93.78822368 | L10: =VLOOKUP($D$3,$A$23:$E$28,5,0) -> 0.6326 | M10: =K10*L10 -> 59.3304303 | N10: =VLOOKUP($D$3,$A$23:$F$28,6,0) -> 0.3674 | O10: =K10*N10 -> 34.45779338 | P10: =VLOOKUP($D$3,$A$23:$G$28,7,0) -> 0 | Q10: =I10*P10/4 -> 0 | R10: =VLOOKUP($D$3,$A$23:$H$28,8,0) -> 0 | S10: =ROUNDUP((IF(F10>R10,R10,F10)),0) -> 0 | T10: =IF(ISBLANK($D$7),0,IF($D$7=$A$46,0,IF($D$3=2019,0,VLOOKUP($D$3,$A$23:$I$28,9,0)))) -> 0 | U10: =S10*T10*(IF(E10>494,494,E10))/494/4 -> 0 | V10: =ROUNDUP((IF(F10>H10,H10,F10)),0) -> 21417 | W10: =IF(ISBLANK($D$6),0,IF($D$3=$B$29,VLOOKUP($D$6,$A$30:$G$37,3,0),(IF($D$3=$D$29,VLOOKUP($D$6,$A$30:$G$37,4,0),(IF($D$3=$E$29,VLOOKUP($D$6,$A$30:$G$37,5,0),(IF($D$3=$F$29,VLOOKUP($D$6,$A$30:$G$37,6,0),(IF($D$3=$G$29,VLOOKUP($D$6,$A$30:$G$37,7,0))))))))))) -> FALSE | X10: =V10*W10*(IF(E10>494,494,E10))/494/4 -> 0 | Y10: =IF(AND(D3=E29,D5=A42),0,(IF(ISBLANK($D$5),0,IF($D$3=$B$29,VLOOKUP($D$5,$A$38:$G$42,3,0),(IF($D$3=$D$29,VLOOKUP($D$5,$A$38:$G$42,4,0),(IF($D$3=$E$29,VLOOKUP($D$5,$A$38:$G$42,5,0),(IF($D$3=$F$29,VLOOKUP($D$5,$A$38:$G$42,6,0),(IF($D$3=$G$29,VLOOKUP($D$5,$A$38:$G$42,7,0))))))))))))) -> FALSE | Z10: =V10*Y10*(IF(E10>494,494,E10))/494/4 -> 0
A11: =IF(E11>494,494,E11)/13 -> 0 | B11: =A11*D11*56.36/12.96 -> 0 | C11: 2e kwartaal | F11: =IF(ISBLANK(E11),0,B11*12.96/ROUND(A11,2)*38) -> 0 | G11: =VLOOKUP($D$3,$A$23:$B$28,2,0) -> 16322 | H11: =VLOOKUP($D$3,$A$23:$C$28,3,0) -> 86202 | I11: =ROUNDUP((IF(F11>H11,H11-G11,IF(F11-G11<0,0,F11-G11))),0) -> 0 | J11: =VLOOKUP($D$3,$A$23:$D$28,4,0) -> 0.2798 | K11: =IF($D$4=$A$45,(I11*J11*(IF(E11>494,494,E11))/4/38/13),0) -> 0 | L11: =VLOOKUP($D$3,$A$23:$E$28,5,0) -> 0.6326 | M11: =K11*L11 -> 0 | N11: =VLOOKUP($D$3,$A$23:$F$28,6,0) -> 0.3674 | O11: =K11*N11 -> 0 | P11: =VLOOKUP($D$3,$A$23:$G$28,7,0) -> 0 | Q11: =I11*P11/4 -> 0 | R11: =VLOOKUP($D$3,$A$23:$H$28,8,0) -> 0 | S11: =ROUNDUP((IF(F11>R11,R11,F11)),0) -> 0 | T11: =IF(ISBLANK($D$7),0,IF($D$7=$A$46,0,IF($D$3=2019,0,VLOOKUP($D$3,$A$23:$I$28,9,0)))) -> 0 | U11: =S11*T11*(IF(E11>494,494,E11))/494/4 -> 0 | V11: =ROUNDUP((IF(F11>H11,H11,F11)),0) -> 0 | W11: =IF(ISBLANK($D$6),0,IF($D$3=$B$29,VLOOKUP($D$6,$A$30:$G$37,2,0),(IF($D$3=$D$29,VLOOKUP($D$6,$A$30:$G$37,4,0),(IF($D$3=$E$29,VLOOKUP($D$6,$A$30:$G$37,5,0),(IF($D$3=$F$29,VLOOKUP($D$6,$A$30:$G$37,6,0),(IF($D$3=$G$29,VLOOKUP($D$6,$A$30:$G$37,7,0))))))))))) -> FALSE | X11: =V11*W11*(IF(E11>494,494,E11))/494/4 -> 0 | Y11: =IF(AND(D3=E29,D5=A42),0,(IF(ISBLANK($D$5),0,IF($D$3=$B$29,VLOOKUP($D$5,$A$38:$G$42,2,0),(IF($D$3=$D$29,VLOOKUP($D$5,$A$38:$G$42,4,0),(IF($D$3=$E$29,VLOOKUP($D$5,$A$38:$G$42,5,0),(IF($D$3=$F$29,VLOOKUP($D$5,$A$38:$G$42,6,0),(IF($D$3=$G$29,VLOOKUP($D$5,$A$38:$G$42,7,0))))))))))))) -> FALSE | Z11: =V11*Y11*(IF(E11>494,494,E11))/494/4 -> 0
A12: =IF(E12>494,494,E12)/13 -> 0 | B12: =A12*D12*56.36/12.96 -> 0 | C12: 3e kwartaal | F12: 0 | G12: 16322 | H12: 86202 | I12: =ROUNDUP((IF(F12>H12,H12-G12,IF(F12-G12<0,0,F12-G12))),0) -> 0 | J12: 0.2798 | K12: =IF($D$4=$A$45,(I12*J12*(IF(E12>494,494,E12))/4/38/13),0) -> 0 | L12: 0.6326 | M12: =K12*L12 -> 0 | N12: 0.3674 | O12: 0 | P12: 0 | Q12: 0 | R12: 0 | S12: 0 | T12: 0 | U12: =S12*T12*(IF(E12>494,494,E12))/494/4 -> 0 | V12: 0 | W12: =IF(ISBLANK($D$6),0,IF($D$3=$B$29,VLOOKUP($D$6,$A$30:$G$37,2,0),(IF($D$3=$D$29,VLOOKUP($D$6,$A$30:$G$37,4,0),(IF($D$3=$E$29,VLOOKUP($D$6,$A$30:$G$37,5,0),(IF($D$3=$F$29,VLOOKUP($D$6,$A$30:$G$37,6,0),(IF($D$3=$G$29,VLOOKUP($D$6,$A$30:$G$37,7,0))))))))))) -> FALSE | X12: 0 | Y12: =IF(ISBLANK($D$5),0,IF($D$3=$B$29,VLOOKUP($D$5,$A$38:$G$42,2,0),(IF($D$3=$D$29,VLOOKUP($D$5,$A$38:$G$42,4,0),(IF($D$3=$E$29,VLOOKUP($D$5,$A$38:$G$42,5,0),(IF($D$3=$F$29,VLOOKUP($D$5,$A$38:$G$42,6,0),(IF($D$3=$G$29,VLOOKUP($D$5,$A$38:$G$42,7,0))))))))))) -> FALSE | Z12: 0
A13: =IF(E13>494,494,E13)/13 -> 0 | B13: =A13*D13*56.36/12.96 -> 0 | C13: 4e kwartaal | F13: 0 | G13: 16322 | H13: 86202 | I13: =ROUNDUP((IF(F13>H13,H13-G13,IF(F13-G13<0,0,F13-G13))),0) -> 0 | J13: 0.2798 | K13: =IF($D$4=$A$45,(I13*J13*(IF(E13>494,494,E13))/4/38/13),0) -> 0 | L13: 0.6326 | M13: =K13*L13 -> 0 | N13: 0.3674 | O13: 0 | P13: 0 | Q13: 0 | R13: 0 | S13: =ROUNDUP((IF(F13>R13,R13,F13)),0) -> 0 | T13: 0 | U13: 0 | V13: =ROUNDUP((IF(F13>H13,H13,F13)),0) -> 0 | W13: =IF(ISBLANK($D$6),0,IF($D$3=$B$29,VLOOKUP($D$6,$A$30:$G$37,2,0),(IF($D$3=$D$29,VLOOKUP($D$6,$A$30:$G$37,4,0),(IF($D$3=$E$29,VLOOKUP($D$6,$A$30:$G$37,5,0),(IF($D$3=$F$29,VLOOKUP($D$6,$A$30:$G$37,6,0),(IF($D$3=$G$29,VLOOKUP($D$6,$A$30:$G$37,7,0))))))))))) -> FALSE | X13: =V13*W13*(IF(E13>494,494,E13))/494/4 -> 0 | Y13: =IF(ISBLANK($D$5),0,IF($D$3=$B$29,VLOOKUP($D$5,$A$38:$G$42,2,0),(IF($D$3=$D$29,VLOOKUP($D$5,$A$38:$G$42,4,0),(IF($D$3=$E$29,VLOOKUP($D$5,$A$38:$G$42,5,0),(IF($D$3=$F$29,VLOOKUP($D$5,$A$38:$G$42,6,0),(IF($D$3=$G$29,VLOOKUP($D$5,$A$38:$G$42,7,0))))))))))) -> FALSE | Z13: =V13*Y13*(IF(E13>494,494,E13))/494/4 -> 0
E15: Pensioenpremie | I15: Premie
B16: Op de factuur | C16: Salaris | D16: Uren per week | E16: Totaal | F16: Werkgever | G16: Werknemer | H16: VPL | I16: O&O | J16: Sociaalfonds | K16: SWWM
B17: 1e kwartaal | C17: =B10 -> 434.8765432 | D17: =ROUND(A10,2) -> 10 | E17: =K10 -> 93.78822368 | F17: =M10 -> 59.3304303 | G17: =O10 -> 34.45779338 | H17: =Q10 -> 0 | I17: =X10 -> 0 | J17: =Z10 -> 0 | K17: =U10 -> 0 | L17: =IF((H10/4/494)>=D10,"","Let op! er is geen rekening gehouden met eventuele excedent premie") -> 
B18: 2e kwartaal | C18: =B11 -> 0 | D18: =ROUND(A11,2) -> 0 | E18: =K11 -> 0 | F18: =M11 -> 0 | G18: =O11 -> 0 | H18: =Q11 -> 0 | I18: =X11 -> 0 | J18: =Z11 -> 0 | K18: =U11 -> 0 | L18: =IF((H11/4/494)>=D11,"","Let op! er is geen rekening gehouden met eventuele excedent premie") -> 
B19: 3e kwartaal | C19: 0 | D19: 0 | E19: =K12 -> 0 | F19: 0 | G19: =O12 -> 0 | H19: 0 | I19: 0 | J19: 0 | K19: =IF(D3=2022,0,U12) -> 0
B20: 4e kwartaal | C20: 0 | D20: 0 | E20: 0 | F20: 0 | G20: =O13 -> 0 | H20: 0 | I20: 0 | J20: =Z13 -> 0 | K20: =IF(D3=2022,0,U13) -> 0
B22: Franchise | C22: Max salaris | D22: Pensioenpremie % | E22: Pensioenpremie werkgever | F22: Pensioenpremie werknemer | G22: VPL | H22: WWM max salaris | I22: WWM | K22: OOGZ | L22: OASZS | M22: OOI | N22: OOM | O22: OOC | P22: OOTW | Q22: SFMvT | R22: SFMvT-A | S22: SFTW | T22: Wij Techniek | U22: SFM
A23: 2023 | B23: 16322 | C23: 86202 | D23: 0.2798 | E23: 0.6326 | F23: 0.3674
A24: 2022 | B24: 14802 | C24: 81010 | D24: 0.2798 | E24: 0.6326 | F24: 0.3674 | H24: 59706 | I24: 0.002 | J24: Premie van 01-01-2022 t/m 30-06-2022: 0,2% tot een maximumsalaris van € 59.706. | K24: 0.005 | M24: 0.0094 | N24: 0.00625 | O24: 0.005 | Q24: 0.0095 | R24: 0.007 | S24: 0.003 | T24: 0.0085 | U24: 0.002 | V24: * Deze premies gelden van 01-04-2022. In de periode van 01-01-2022 t/m 31-03-2022 is de premie 0%.
A25: 2021 | B25: 14554 | C25: 79719 | D25: 0.2798 | E25: 0.6326 | F25: 0.3674 | H25: 58311 | I25: 0.004 | K25: 0.005 | M25: 0.007 | N25: 0.00625 | O25: 0.005 | Q25: 0.0095 | R25: 0.007 | S25: 0.003 | T25: 0.0085 | U25: 0.002
A26: 2020 | B26: 14554 | C26: 78348 | D26: 0.222 | E26: 0.537 | F26: 0.463 | G26: 0.0578 | H26: 57232 | I26: 0.004 | K26: 0.005 | L26: 0.002 | M26: 0.007 | N26: 0.00625 | O26: 0.005 | Q26: 0.007 | R26: 0.0045 | S26: 0.012 | T26: 0.0085 | U26: 0.002 | V26: * Premiepercentage van januari t/m juni 2020 is 0,00%. Vanaf 1 juli 2020: 1,2%. Er wordt vanaf 01-01-2020 géén premie in rekening gebracht voor het O&O fonds Tankstations en Wasbedrijven (OOTW).
A27: 2019 | B27: 14554 | C27: 74327 | D27: 0.222 | E27: 0.537 | F27: 0.463 | G27: 0.0578 | H27: 55927 | I27: 0.003 | J27: Premie vanaf 1-7-2019: 0,3% tot maximumsalaris van 55.927 euro | K27: 0.005 | L27: 0.002 | M27: 0.007 | N27: 0.00625 | O27: 0.005 | P27: 0.003 | Q27: 0.007 | R27: 0.0045 | S27: 0.003 | T27: 0.01 | U27: 0.002
A28: 2018 | B28: 14704 | C28: 73711 | D28: 0.226 | E28: 0.537 | F28: 0.463 | G28: 0.0588 | K28: 0.005 | L28: 0.002 | M28: 0.007 | N28: 0.00625 | O28: 0.005 | P28: 0.003 | Q28: 0.007 | R28: 0.0045 | S28: 0.003 | T28: 0.01 | U28: 0.002
B29: 2022 | C29: 2022-2 | D29: 2021 | E29: 2020 | F29: 2019 | G29: 2018
A30: Geen
A31: (OASZS) Scheepsbenodigdhedenhandelaren, Zeilmakers en Scheepstuigers | B31: 0 | C31: 0 | D31: 0 | E31: 0.002 | F31: 0.002 | G31: 0.002
A32: (OOC) Carrosseriebedrijf | B32: 0.005 | C32: 0.005 | D32: 0.005 | E32: 0.005 | F32: 0.005 | G32: 0.005
A33: (OOGZ) Goud en Zilver | B33: 0.005 | C33: 0 | D33: 0.005 | E33: 0.005 | F33: 0.005 | G33: 0.005
A34: (OOI) Isolatiebedrijf | B34: 0.0094 | C34: 0 | D34: 0.007 | E34: 0.007 | F34: 0.007 | G34: 0.007
A35: (OOM) Metaalbewerkingsbedrijf | B35: 0.00625 | C35: 0 | D35: 0.00625 | E35: 0.00625 | F35: 0.00625 | G35: 0.00625
A36: (OOTW) Tankstations en Wasbedrijven | B36: 0 | C36: 0 | D36: 0 | E36: 0 | F36: 0.003 | G36: 0.003
A37: (Wij Techniek) Technisch installatiebedrijf | B37: 0.0085 | C37: 0 | D37: 0.0085 | E37: 0.0085 | F37: 0.01 | G37: 0.01
A38: Geen
A39: (SFM) Sociaal Fonds Metaal en Technische Bedrijfstakken | B39: 0.002 | C39: 0 | D39: 0.002 | E39: 0.002 | F39: 0.002 | G39: 0.002
A40: (SFMVT) Motorvoertuigen- en Tweewielerbedrijf | B40: 0.0095 | D40: 0.0095 | E40: 0.007 | F40: 0.007 | G40: 0.007
A41: (SFMVT-A) Motorvoertuigen- en Tweewielerbedrijf | B41: 0.007 | D41: 0.007 | E41: 0.0045 | F41: 0.0045 | G41: 0.0045
A42: (SFTW) Tankstations en Wasbedrijven | B42: 0.003 | D42: 0.003 | E42: 0.012 | F42: 0.003 | G42: 0.003
B43: * Deze premies gelden van 01-04-2022. In de periode van 01-01-2022 t/m 31-03-2022 is de premie 0%. | E43: * Premiepercentage van januari t/m juni 2020 is 0,00%. Vanaf 1 juli 2020: 1,2%. Er wordt vanaf 01-01-2020 géén premie in rekening gebracht voor het O&O fonds Tankstations en Wasbedrijven (OOTW).
A45: Ja
A46: Nee
